fUST/lending_fUST_20241121
["ID","MTS","AMOUNT","RATE_DAILY","PERIOD"]
[342828058,1732163442372,-500.0,0.00021917,2]
[342828059,1732163442381,-500.0,0.00021917,2]
[342828060,1732163442390,-505.25591956,0.00021917,2]
[342828061,1732163442399,-500.0,0.00021917,2]
[342828062,1732163442409,-504.62452753,0.00021917,2]
[342828063,1732163442418,-610.37872222,0.00021917,2]
[342828064,1732163442427,-500.0,0.00021917,2]
[342828065,1732163442436,-500.0,0.00021917,2]
[342828066,1732163442446,-500.0,0.00021917,2]
[342828067,1732163442460,-500.0,0.00021917,2]
[342828068,1732163442469,-500.0,0.00021917,2]
[342828069,1732163442479,-501.06960567,0.00021917,2]
[342828070,1732163442488,-500.0,0.00021917,2]
[342828071,1732163442498,-514.43053919,0.00021917,2]
[342828072,1732163442507,-526.11292382,0.00021917,2]
[342828073,1732163442516,-500.0,0.00021917,2]
[342828074,1732163442527,-504.16841253,0.00021917,2]
[342828075,1732163442536,-500.0,0.00021917,2]
[342828076,1732163442545,-500.0,0.00021917,2]
[342828077,1732163442554,-500.0,0.00021917,2]
[342828078,1732163442564,-500.0,0.00021917,2]
[342828079,1732163442572,-506.86576553,0.00021917,2]
[342828080,1732163442582,-500.0,0.00021917,2]
[342828081,1732163442591,-510.57895709,0.00021917,2]
[342828082,1732163442600,-500.0,0.00021917,2]
[342828083,1732163442609,-500.0,0.00021917,2]
[342828084,1732163442619,-500.0,0.00021917,2]
[342828085,1732163442628,-500.0,0.00021917,2]
[342828086,1732163442638,-500.0,0.00021917,2]
[342828087,1732163442649,-500.0,0.00021917,2]
[342828088,1732163442658,-523.00131985,0.00021917,2]
[342828089,1732163442668,-394.52199259,0.00021917,2]
[342828090,1732163442678,-500.99013309,0.00021917,2]
[342828091,1732163442687,-500.0,0.00021917,2]
[342828092,1732163442697,-500.0,0.00021917,2]
[342828093,1732163442709,-503.17637563,0.00021917,2]
[342828094,1732163442718,-500.0,0.00021917,2]
[342828095,1732163442727,-500.0,0.00021917,2]
[342828096,1732163442736,-521.49733624,0.00021917,2]
[342828097,1732163442746,-500.0,0.00021917,2]
[342828098,1732163442755,-508.34736714,0.00021917,2]
[342828099,1732163442764,-575.62279305,0.00021917,2]
[342828100,1732163442773,-504.56479954,0.00021917,2]
[342828101,1732163442783,-500.0,0.00021917,2]
[342828102,1732163442792,-500.0,0.00021917,2]
[342828103,1732163442801,-500.0,0.00021917,2]
[342828104,1732163442810,-511.06757681,0.00021917,2]
[342828105,1732163442819,-500.0,0.00021917,2]
[342828106,1732163442829,-500.0,0.00021917,2]
[342828107,1732163442838,-500.0,0.00021917,2]
[342828108,1732163442847,-500.0,0.00021917,2]
[342828109,1732163442856,-500.0,0.00021917,2]
[342828110,1732163442866,-518.6797269,0.00021917,2]
[342828111,1732163442874,-409.98138313,0.00021917,2]
[342828112,1732163442884,-512.88171812,0.00021917,2]
[342828113,1732163442893,-500.0,0.00021917,2]
[342828114,1732163442902,-594.41977471,0.00021917,2]
[342828115,1732163442911,-500.0,0.00021917,2]
[342828116,1732163442921,-500.0,0.00021917,2]
[342828117,1732163442930,-500.0,0.00021917,2]
[342828118,1732163442939,-506.87569204,0.00021917,2]
[342828119,1732163442948,-500.0,0.00021917,2]
[342828120,1732163442962,-500.0,0.00021917,2]
[342828121,1732163442971,-500.0,0.00021917,2]
[342828122,1732163442981,-502.20009697,0.00021917,2]
[342828123,1732163442990,-4153.37,0.00021917,2]
[342828124,1732163442999,-612.84977739,0.00021917,2]
[342828125,1732163443009,-503.22932957,0.00021917,2]
[342828126,1732163443019,-500.0,0.00021917,2]
[342828127,1732163443029,-500.0,0.00021917,2]
[342828128,1732163443038,-506.80732748,0.00021917,2]
[342828130,1732163443047,-507.49661489,0.00021917,2]
[342828131,1732163443057,-514.04523791,0.00021917,2]
[342828132,1732163443067,-500.0,0.00021917,2]
[342828134,1732163443076,-500.0,0.00021917,2]
[342828136,1732163443085,-500.0,0.00021917,2]
[342828137,1732163443095,-502.04517292,0.00021917,2]
[342828139,1732163443104,-500.0,0.00021917,2]
[342828140,1732163443113,-500.0,0.00021917,2]
[342828141,1732163443123,-385.63002465,0.00021917,2]
[342828142,1732163443133,-4115.31,0.00021917,2]
[342828143,1732163443142,-506.5294368,0.00021917,2]
[342828144,1732163443151,-353.94571704,0.00021917,2]
[342828145,1732163443160,-502.13140637,0.00021917,2]
[342828146,1732163443170,-335.31801888,0.00021917,2]
[342828147,1732163443179,-507.26015361,0.00021917,2]
[342828150,1732163443189,-500.0,0.00021917,2]
[342828154,1732163443198,-500.0,0.00021917,2]
[342828156,1732163443213,-500.0,0.00021917,2]
[342828158,1732163443222,-500.0,0.00021917,2]
[342828161,1732163443232,-500.0,0.00021917,2]
[342828162,1732163443240,-505.4201595,0.00021917,2]
[342828163,1732163443249,-500.0,0.00021917,2]
[342828165,1732163443259,-500.0,0.00021917,2]
[342828166,1732163443268,-175.36303432,0.00021917,2]
[342828168,1732163443278,-500.0,0.00021917,2]
[342828170,1732163443291,-503.53950224,0.00021917,2]
[342828172,1732163443300,-507.72341111,0.00021917,2]
[342828174,1732163443310,-526.02178823,0.00021917,2]
[342828177,1732163443324,-508.34269847,0.00021917,2]
[342828179,1732163443339,-500.0,0.00021917,2]
[342828180,1732163443349,-500.0,0.00021917,2]
[342828181,1732163443358,-678.18,0.00021917,2]
[342828182,1732163443369,-500.0,0.00021917,2]
[342828184,1732163443379,-500.0,0.00021917,2]
[342828186,1732163443389,-524.01410699,0.00021917,2]
[342828187,1732163443399,-500.0,0.00021917,2]
[342828188,1732163443409,-504.93956568,0.00021917,2]
[342828189,1732163443418,-500.0,0.00021917,2]
[342828190,1732163443427,-500.0,0.00021917,2]
[342828192,1732163443438,-500.0,0.00021917,2]
[342828194,1732163443448,-500.0,0.00021917,2]
[342828196,1732163443462,-500.0,0.00021917,2]
[342828198,1732163443475,-500.0,0.00021917,2]
[342828200,1732163443486,-500.0,0.00021917,2]
[342828201,1732163443496,-500.0,0.00021917,2]
[342828202,1732163443505,-477.14081998,0.00021917,2]
[342828204,1732163443514,-501.84506903,0.00021917,2]
[342828206,1732163443523,-500.0,0.00021917,2]
[342828207,1732163443533,-500.0,0.00021917,2]
[342828208,1732163443543,-500.0,0.00021917,2]
[342828209,1732163443552,-196.38904736,0.00021917,2]
[342828212,1732163443675,-306.83857171,0.00021917,2]
[342828214,1732163443685,-502.13185683,0.00021917,2]
[342828215,1732163443695,-506.04838147,0.00021917,2]
[342828216,1732163443794,-500.0,0.00021917,2]
[342828217,1732163443803,-503.68485423,0.00021917,2]
[342828218,1732163443813,-500.0,0.00021917,2]
[342828219,1732163443823,-500.0,0.00021917,2]
[342828220,1732163443832,-500.0,0.00021917,2]
[342828221,1732163443841,-509.02074191,0.00021917,2]
[342828222,1732163443850,-501.10586503,0.00021917,2]
[342828223,1732163443859,-500.0,0.00021917,2]
[342828224,1732163443869,-517.82550856,0.00021917,2]
[342828225,1732163443878,-735.58,0.00021917,2]
[342828226,1732163443888,-509.02879137,0.00021917,2]
[342828227,1732163443897,-504.91254648,0.00021917,2]
[342828228,1732163443907,-500.0,0.00021917,2]
[342828229,1732163443916,-503.50718277,0.00021917,2]
[342828230,1732163443926,-504.68226453,0.00021917,2]
[342828231,1732163443936,-500.0,0.00021917,2]
[342828232,1732163443946,-500.0,0.00021917,2]
[342828233,1732163443957,-500.0,0.00021917,2]
[342828234,1732163443968,-637.72634735,0.00021917,2]
[342828235,1732163443978,-500.0,0.00021917,2]
[342828236,1732163443988,-501.49355046,0.00021917,2]
[342828237,1732163443998,-500.0,0.00021917,2]
[342828238,1732163444007,-518.31358055,0.00022191,2]
[342828239,1732163444017,-500.63606651,0.00022191,2]
[342828240,1732163444027,-500.0,0.00022191,2]
[342828241,1732163444036,-526.2912813,0.00022191,2]
[342828242,1732163444046,-500.0,0.00022191,2]
[342828243,1732163444055,-500.0,0.00022191,2]
[342828244,1732163444065,-640.89,0.00022191,2]
[342828245,1732163444075,-589.82956367,0.00022191,2]
[342828246,1732163444084,-500.0,0.00022191,2]
[342828247,1732163444094,-637.82401434,0.00022191,2]
[342828248,1732163444104,-500.0,0.00022191,2]
[342828249,1732163444113,-500.0,0.00022191,2]
[342828250,1732163444122,-409.21,0.00022191,2]
[342828251,1732163444131,-500.0,0.00022191,2]
[342828252,1732163444141,-500.0,0.00022191,2]
[342828253,1732163444150,-161.36070576,0.00022191,2]
[342828254,1732163444160,-507.15268725,0.00022191,2]
[342828255,1732163444169,-509.14269121,0.00022191,2]
[342828256,1732163444179,-500.0,0.00022191,2]
[342828257,1732163444189,-471.71604511,0.00022191,2]
[342828258,1732163444204,-34.27871379,0.00022191,2]
[342828259,1732163444213,-510.01386708,0.00022191,2]
[342828260,1732163444222,-500.0,0.00022191,2]
[342828261,1732163444232,-500.0,0.00022191,2]
[342828262,1732163444241,-500.0,0.00022191,2]
[342828263,1732163444250,-440.16973297,0.00022191,2]
[342828264,1732163444260,-509.18201769,0.00022191,2]
[342828265,1732163444270,-500.0,0.00022191,2]
[342828266,1732163444283,-331.67,0.00022191,2]
[342828267,1732163444292,-4153.37,0.00022191,2]
[342828268,1732163444302,-323.75044718,0.00022191,2]
[342828269,1732163444311,-500.0,0.00022191,2]
[342828270,1732163444322,-500.0,0.00022191,2]
[342828271,1732163444332,-500.0,0.00022191,2]
[342828272,1732163444342,-412.61,0.00022191,2]
[342828273,1732163444353,-4115.31,0.00022191,2]
[342828274,1732163444362,-498.80937801,0.00022191,2]
[342828275,1732163444371,-509.40517817,0.00022191,2]
[342828276,1732163444381,-394.09046349,0.00022191,2]
[342828277,1732163444390,-505.10457091,0.00022191,2]
[342828278,1732163444400,-570.42934567,0.00022191,2]
[342828279,1732163444410,-500.0,0.00022191,2]
[342828280,1732163444419,-678.18,0.00022191,2]
[342828281,1732163444428,-500.0,0.00022191,2]
[342828282,1732163444438,-500.0,0.00022191,2]
[342828283,1732163444447,-504.13821183,0.00022191,2]
[342828284,1732163444458,-514.08646417,0.00022191,2]
[342828285,1732163444467,-501.89919337,0.00022191,2]
[342828286,1732163444476,-500.0,0.00022191,2]
[342828287,1732163444486,-500.0,0.00022191,2]
[342828288,1732163444495,-500.0,0.00022191,2]
[342828289,1732163444504,-540.69,0.00022191,2]
[342828290,1732163444515,-500.0,0.00022191,2]
[342828291,1732163444524,-500.0,0.00022191,2]
[342828292,1732163444533,-511.38394035,0.00022191,2]
[342828293,1732163444543,-735.58,0.00022191,2]
[342828294,1732163444552,-509.10630748,0.00022191,2]
[342828295,1732163444561,-500.0,0.00022191,2]
[342828296,1732163444571,-500.0,0.00022191,2]
[342828297,1732163444581,-500.0,0.00022191,2]
[342828298,1732163444590,-510.65036593,0.00022465,2]
[342828299,1732163444599,-375.0210587,0.00022465,2]
[342828300,1732163444609,-500.67158606,0.00022465,2]
[342828301,1732163444618,-215.58703883,0.00022465,2]
[342828302,1732163444627,-513.23497995,0.00022465,2]
[342828303,1732163444638,-500.0,0.00022465,2]
[342828304,1732163444647,-500.0,0.00022465,2]
[342828305,1732163444656,-510.73875258,0.00022465,2]
[342828306,1732163444665,-500.0,0.00022465,2]
[342828307,1732163444674,-4153.37,0.00022465,2]
[342828308,1732163444683,-194.99626684,0.00022465,2]
[342828309,1732163444692,-500.0,0.00022465,2]
[342828310,1732163444701,-4115.31,0.00022465,2]
[342828311,1732163444713,-500.0,0.00022465,2]
[342828312,1732163444722,-678.18,0.00022465,2]
[342828313,1732163444731,-500.0,0.00022465,2]
[342828314,1732163444740,-500.0,0.00022465,2]
[342828315,1732163444749,-209.68339294,0.00022465,2]
[342828316,1732163444758,-532.80055379,0.00022465,2]
[342828317,1732163444767,-296.62,0.00022465,2]
[342828318,1732163444776,-735.58,0.00022465,2]
[342828319,1732163444786,-500.0,0.00022465,2]
[342828320,1732163444796,-500.0,0.00022739,2]
[342828321,1732163444805,-500.0,0.00022739,2]
[342828322,1732163444814,-4153.37,0.00022739,2]
[342828323,1732163444824,-500.0,0.00022739,2]
[342828324,1732163444833,-4115.31,0.00022739,2]
[342828325,1732163444842,-500.0,0.00022739,2]
[342828326,1732163444852,-678.18,0.00022739,2]
[342828327,1732163444862,-500.0,0.00022739,2]
[342828328,1732163444872,-735.58,0.00022739,2]
[342828329,1732163444881,-215.73458598,0.00022739,2]
[342828330,1732163444891,-500.0,0.00023013,2]
[342828331,1732163444900,-400.6739695,0.00023013,2]
[342828332,1732163444910,-4153.37,0.00023013,2]
[342828333,1732163444919,-500.0,0.00023013,2]
[342828334,1732163444929,-4115.31,0.00023013,2]
[342828335,1732163444939,-500.0,0.00023013,2]
[342828336,1732163444949,-678.18,0.00023013,2]
[342828337,1732163444961,-500.0,0.00023013,2]
[342828338,1732163444970,-735.58,0.00023013,2]
[342828339,1732163444980,-165.57183074,0.00023034,2]
[342828340,1732163444990,-4153.37,0.00023287,2]
[342828341,1732163445000,-500.0,0.00023287,2]
[342828342,1732163445010,-4115.31,0.00023287,2]
[342828343,1732163445019,-500.0,0.00023287,2]
[342828344,1732163445029,-678.18,0.00023287,2]
[342828345,1732163445039,-500.0,0.00023287,2]
[342828346,1732163445049,-735.58,0.00023287,2]
[342828347,1732163445058,-180.071,0.00023506,4]
[342828348,1732163445068,-4153.37,0.00023561,2]
[342828349,1732163445082,-500.0,0.00023561,2]
[342828350,1732163445092,-4115.31,0.00023561,2]
[342828351,1732163445102,-500.0,0.00023561,2]
[342828352,1732163445112,-678.18,0.00023561,2]
[342828353,1732163445121,-500.0,0.00023561,2]
[342828354,1732163445131,-735.58,0.00023561,2]
[342828355,1732163445141,-4153.37,0.00023835,2]
[342828356,1732163445152,-500.0,0.00023835,2]
[342828357,1732163445161,-4115.31,0.00023835,2]
[342828358,1732163445173,-500.0,0.00023835,2]
[342828359,1732163445183,-678.18,0.00023835,2]
[342828360,1732163445193,-500.0,0.00023835,2]
[342828361,1732163445205,-735.58,0.00023835,2]
[342828362,1732163445214,-4153.37,0.00024109,2]
[342828363,1732163445224,-500.0,0.00024109,2]
[342828364,1732163445234,-4115.31,0.00024109,2]
[342828365,1732163445243,-500.0,0.00024109,2]
[342828366,1732163445253,-678.18,0.00024109,2]
[342828367,1732163445263,-466.23851906,0.00024109,2]
[342828368,1732163445276,-33.76148094,0.00024109,2]
[342828369,1732163445289,-735.58,0.00024109,2]
[342828370,1732163445299,-165.57183074,0.00024252,2]
[342828371,1732163445309,-4153.37,0.00024383,2]
[342828372,1732163445318,-500.0,0.00024383,2]
[342828373,1732163445327,-4115.31,0.00024383,2]
[342828374,1732163445336,-500.0,0.00024383,2]
[342828375,1732163445346,-678.18,0.00024383,2]
[342828376,1732163445356,-592.91830747,0.00024383,2]
[342828377,1732163445371,-735.58,0.00024383,2]
[342828378,1732163445381,-12546.93892815,0.00024557,2]
[342828379,1732163445390,-4153.37,0.00024657,2]
[342828380,1732163445400,-500.0,0.00024657,2]
[342828381,1732163445410,-4115.31,0.00024657,2]
[342828382,1732163445419,-500.0,0.00024657,2]
[342828383,1732163445429,-678.18,0.00024657,2]
[342828384,1732163445439,-735.58,0.00024657,2]
[342828385,1732163445448,-3201.31581604,0.00024931,2]
[342828386,1732163445472,-952.05418396,0.00024931,2]
[342828387,1732163445483,-500.0,0.00024931,2]
[342828388,1732163445498,-1552.82776391,0.00024931,2]
[342828389,1732163445510,-2562.48223609,0.00024931,2]
[342828390,1732163445520,-500.0,0.00024931,2]
[342828391,1732163445530,-678.18,0.00024931,2]
[342828392,1732163445540,-735.58,0.00024931,2]
[342828393,1732163445549,-472.0,0.00025,2]
[342828394,1732163445559,-4153.37,0.00025205,2]
[342828395,1732163445569,-500.0,0.00025205,2]
[342828396,1732163445579,-4115.31,0.00025205,2]
[342828397,1732163445588,-500.0,0.00025205,2]
[342828398,1732163445598,-678.18,0.00025205,2]
[342828399,1732163445607,-116.94830414,0.00025205,2]
[342828415,1732163446658,-188.17,0.00021907,3]
[342828416,1732163446668,-376.34,0.00023277,3]
[342828417,1732163446678,-618.63169586,0.00025205,2]
[342828419,1732163446688,-624.61860045,0.00025255,3]
[342828421,1732163446697,-5952.65242155,0.00025318,2]
[342828422,1732163446710,-165.57183074,0.0002547,2]
[342828423,1732163446720,-4153.37,0.00025479,2]
[342828424,1732163446729,-348.5,0.00025479,2]
[342828425,1732163446738,-4115.31,0.00025479,2]
[342828426,1732163446748,-500.0,0.00025479,2]
[342828427,1732163446757,-678.18,0.00025479,2]
[342828428,1732163446767,-735.58,0.00025479,2]
[342828429,1732163446776,-5952.65242156,0.00025636,2]
[342828430,1732163446785,-4153.37,0.00025753,2]
[342828431,1732163446795,-4115.31,0.00025753,2]
[342828432,1732163446804,-500.0,0.00025753,2]
[342828433,1732163446814,-678.18,0.00025753,2]
[342828434,1732163446823,-735.58,0.00025753,2]
[342828435,1732163446833,-4153.37,0.00026027,2]
[342828436,1732163446842,-4115.31,0.00026027,2]
[342828437,1732163446852,-500.0,0.00026027,2]
[342828438,1732163446861,-678.18,0.00026027,2]
[342828439,1732163446870,-735.58,0.00026027,2]
[342828440,1732163446879,-270.02,0.000261,2]
[342828441,1732163446889,-8806.97685434,0.00026301,2]
[342828442,1732163446898,-4153.37,0.00026301,2]
[342828443,1732163446908,-4115.31,0.00026301,2]
[342828444,1732163446917,-500.0,0.00026301,2]
[342828445,1732163446926,-678.18,0.00026301,2]
[342828446,1732163446936,-735.58,0.00026301,2]
[342828447,1732163446945,-4153.37,0.00026575,2]
[342828448,1732163446958,-4115.31,0.00026575,2]
[342828449,1732163446967,-500.0,0.00026575,2]
[342828450,1732163446977,-678.18,0.00026575,2]
[342828451,1732163446986,-735.58,0.00026575,2]
[342828452,1732163446996,-1000.0,0.00026649,2]
[342828453,1732163447005,-165.57183074,0.00026688,2]
[342828454,1732163447015,-298.684816,0.00026749,7]
[342828455,1732163447025,-152.603676,0.00026749,7]
[342828456,1732163447034,-151.0,0.00026749,7]
[342828457,1732163447043,-151.0,0.00026749,7]
[342828458,1732163447052,-89984.57725247,0.00026749,2]
[342828459,1732163447064,-78942.3770925,0.00026749,2]
[342828517,1732164021073,165.057262,0.00013973,2]
[342828521,1732164243413,506.0,0.00025,120]
[342828656,1732164637858,-323.81791502,0.00018,2]
[342828663,1732164637972,-466.882785,0.00018,2]
[342828692,1732164641489,-5267.65371123,0.00018,2]
[342828693,1732164641545,-957.27058875,0.00018,2]
[342828694,1732164641555,-2144.0062534,0.00019534,2]
[342828695,1732164641564,-300.0,0.00019569,2]
[342828696,1732164641574,-3188.0,0.00019569,2]
[342828697,1732164641583,-1839.500582,0.0001957,2]
[342828698,1732164641592,-2288.18462801,0.00019788,4]
[342828699,1732164641601,-6518.92461281,0.0001984,4]
[342828700,1732164641612,-413.107986,0.00019952,2]
[342828701,1732164641622,-1839.500582,0.00020255,2]
[342828702,1732164641632,-1088.66404214,0.0002065,2]
[342828703,1732164641644,-932.15500781,0.00020659,2]
[342828704,1732164641654,-24900.0,0.0002066,2]
[342828705,1732164641663,-229.18571708,0.00020939,2]
[342828719,1732164642893,-1610.31486492,0.00020939,2]
[342828720,1732164642903,-167.844102,0.00020961,2]
[342828721,1732164642913,-420.0,0.00021317,2]
[342828722,1732164642922,-152.0,0.00021515,2]
[342828723,1732164642932,-1795.0176958,0.00021817,2]
[342828724,1732164642942,-212.01,0.00021907,3]
[342828725,1732164642952,-636.07,0.00021907,3]
[342828726,1732164642963,-500.0,0.00021916,2]
[342828727,1732164642973,-500.0,0.00021916,2]
[342828728,1732164642982,-500.0,0.00021916,2]
[342828729,1732164642992,-500.0,0.00021916,2]
[342828730,1732164643002,-500.0,0.00021916,2]
[342828731,1732164643011,-500.0,0.00021916,2]
[342828732,1732164643021,-400.02636232,0.00021916,2]
[342828733,1732164643031,-500.0,0.00021916,2]
[342828734,1732164643040,-500.0,0.00021916,2]
[342828735,1732164643050,-500.0,0.00021916,2]
[342828736,1732164643060,-500.0,0.00021916,2]
[342828737,1732164643070,-500.0,0.00021916,2]
[342828739,1732164643079,-500.0,0.00021916,2]
[342828741,1732164643088,-500.0,0.00021916,2]
[342828742,1732164643098,-500.0,0.00021916,2]
[342828744,1732164643107,-415.84841615,0.00021916,2]
[342828746,1732164643117,-500.0,0.00021916,2]
[342828748,1732164643128,-331.88837352,0.00021916,2]
[342828750,1732164643137,-500.0,0.00021916,2]
[342828751,1732164643146,-219.00178224,0.00021916,2]
[342828752,1732164643157,-603.88348495,0.00021916,2]
[342828753,1732164643175,-168.45176653,0.00021916,2]
[342828754,1732164643186,-500.0,0.00021916,2]
[342828755,1732164643196,-500.0,0.00021916,2]
[342828756,1732164643209,-500.0,0.00021916,2]
[342828757,1732164643219,-500.0,0.00021916,2]
[342828758,1732164643229,-500.0,0.00021916,2]
[342828759,1732164643238,-500.0,0.00021916,2]
[342828760,1732164643248,-500.0,0.00021916,2]
[342828761,1732164643257,-269.27879822,0.00021916,2]
[342828762,1732164643267,-500.0,0.00021916,2]
[342828763,1732164643277,-350.76296303,0.00021916,2]
[342828764,1732164643287,-500.0,0.00021916,2]
[342828765,1732164643297,-500.0,0.00021916,2]
[342828766,1732164643307,-500.0,0.00021916,2]
[342828767,1732164643317,-500.0,0.00021916,2]
[342828768,1732164643327,-500.0,0.00021916,2]
[342828769,1732164643337,-500.0,0.00021916,2]
[342828770,1732164643348,-500.0,0.00021916,2]
[342828771,1732164643357,-500.0,0.00021916,2]
[342828772,1732164643367,-500.0,0.00021916,2]
[342828773,1732164643377,-500.0,0.00021916,2]
[342828774,1732164643387,-500.0,0.00021916,2]
[342828775,1732164643397,-500.0,0.00021916,2]
[342828776,1732164643407,-500.0,0.00021916,2]
[342828777,1732164643418,-500.0,0.00021916,2]
[342828778,1732164643428,-500.0,0.00021916,2]
[342828779,1732164643438,-169.75324037,0.00021916,2]
[342828780,1732164643447,-205.64032922,0.00021916,2]
[342828781,1732164643460,-178.2092761,0.00021916,2]
[342828782,1732164643470,-500.0,0.00021917,2]
[342828783,1732164643479,-500.0,0.00021917,2]
[342828784,1732164643489,-200.0,0.00021917,2]
[342828785,1732164643498,-37.54119464,0.00021917,2]
[342828786,1732164643511,-462.45880536,0.00021917,2]
[342828787,1732164643520,-191.67001574,0.00021917,2]
[342828788,1732164643529,-177.66262691,0.00021917,2]
[342828789,1732164643539,-506.18494225,0.00021917,2]
[342828790,1732164643548,-522.70044151,0.00021917,2]
[342828791,1732164643558,-502.64616925,0.00021917,2]
[342828792,1732164643567,-500.0,0.00021917,2]
[342828793,1732164643577,-352.51476679,0.00021917,2]
[342828794,1732164643586,-500.0,0.00021917,2]
[342828795,1732164643596,-500.0,0.00021917,2]
[342828796,1732164643606,-507.07363414,0.00021917,2]
[342828797,1732164643621,-500.0,0.00021917,2]
[342828798,1732164643631,-500.0,0.00021917,2]
[342828799,1732164643641,-500.0,0.00021917,2]
[342828800,1732164643650,-526.05865371,0.00021917,2]
[342828801,1732164643661,-500.0,0.00021917,2]
[342828802,1732164643670,-500.0,0.00021917,2]
[342828803,1732164643680,-500.0,0.00021917,2]
[342828804,1732164643690,-503.35068361,0.00021917,2]
[342828805,1732164643699,-500.0,0.00021917,2]
[342828806,1732164643712,-500.0,0.00021917,2]
[342828807,1732164643722,-500.0,0.00021917,2]
[342828808,1732164643731,-500.96061046,0.00021917,2]
[342828809,1732164643741,-500.0,0.00021917,2]
[342828810,1732164643749,-500.0,0.00021917,2]
[342828811,1732164643759,-500.0,0.00021917,2]
[342828812,1732164643768,-500.0,0.00021917,2]
[342828813,1732164643778,-500.0,0.00021917,2]
[342828814,1732164643787,-500.0,0.00021917,2]
[342828815,1732164643797,-500.0,0.00021917,2]
[342828816,1732164643807,-161.18349741,0.00021917,2]
[342828817,1732164643831,-338.81650259,0.00021917,2]
[342828818,1732164643840,-500.0,0.00021917,2]
[342828819,1732164643851,-500.0,0.00021917,2]
[342828820,1732164643860,-500.0,0.00021917,2]
[342828821,1732164643870,-510.35454913,0.00021917,2]
[342828822,1732164643879,-500.0,0.00021917,2]
[342828823,1732164643888,-500.0,0.00021917,2]
[342828824,1732164643897,-500.0,0.00021917,2]
[342828825,1732164643907,-500.0,0.00021917,2]
[342828826,1732164643916,-500.0,0.00021917,2]
[342828827,1732164643926,-454.83125633,0.00021917,2]
[342828828,1732164643936,-500.0,0.00021917,2]
[342828829,1732164643945,-340.96689248,0.00021917,2]
[342828830,1732164643957,-506.38,0.00021917,2]
[342828831,1732164643972,-500.0,0.00021917,2]
[342828832,1732164643981,-500.0,0.00021917,2]
[342828833,1732164643990,-500.0,0.00021917,2]
[342828834,1732164644000,-354.66914183,0.00021917,2]
[342828835,1732164644009,-506.3632648,0.00021917,2]
[342828836,1732164644020,-527.34021494,0.00021917,2]
[342828837,1732164644030,-500.0,0.00021917,2]
[342828838,1732164644040,-500.0,0.00021917,2]
[342828839,1732164644051,-500.0,0.00021917,2]
[342828840,1732164644062,-500.0,0.00021917,2]
[342828841,1732164644072,-500.0,0.00021917,2]
[342828842,1732164644082,-500.0,0.00021917,2]
[342828843,1732164644092,-500.0,0.00021917,2]
[342828844,1732164644102,-3033.79,0.00021917,2]
[342828845,1732164644112,-500.0,0.00021917,2]
[342828846,1732164644121,-2371.19,0.00021917,2]
[342828847,1732164644131,-500.0,0.00021917,2]
[342828848,1732164644141,-500.0,0.00021917,2]
[342828849,1732164644150,-500.0,0.00021917,2]
[342828850,1732164644160,-500.0,0.00021917,2]
[342828851,1732164644169,-500.0,0.00021917,2]
[342828852,1732164644179,-500.0,0.00021917,2]
[342828853,1732164644189,-500.00595325,0.00021917,2]
[342828854,1732164644198,-500.0,0.00021917,2]